fUSD/lending_fUSD_20250607
["ID","MTS","AMOUNT","RATE_DAILY","PERIOD"]
[364891014,1749285055134,-10000.0,0.00029979,7]
[364891015,1749285055144,-10000.0,0.00029979,7]
[364891016,1749285055155,-151.0,0.00029979,7]
[364891017,1749285055164,-151.0,0.00029979,7]
[364891018,1749285055175,-151.0,0.00029979,7]
[364891019,1749285055185,-10000.0,0.00029979,7]
[364891020,1749285055195,-10000.0,0.00029979,7]
[364891021,1749285055206,-3821.42192,0.00029979,7]
[364891022,1749285055215,-961.409907,0.00029979,7]
[364891023,1749285055225,-961.409907,0.00029979,7]
[364891024,1749285055235,-961.409907,0.00029979,7]
[364891025,1749285055247,-961.409907,0.00029979,7]
[364891026,1749285055257,-961.409907,0.00029979,7]
[364891027,1749285055267,-961.409907,0.00029979,7]
[364891028,1749285055277,-171.882811,0.00029979,7]
[364891029,1749285055287,-171.882811,0.00029979,7]
[364891030,1749285055297,-171.882811,0.00029979,7]
[364891031,1749285055309,-171.882811,0.00029979,7]
[364891032,1749285055320,-171.882811,0.00029979,7]
[364891033,1749285055331,-171.882817,0.00029979,7]
[364891034,1749285055342,-426.267147,0.00029979,7]
[364891035,1749285055352,-426.267147,0.00029979,7]
[364891036,1749285055362,-426.267147,0.00029979,7]
[364891037,1749285055372,-426.267147,0.00029979,7]
[364891038,1749285055382,-426.267147,0.00029979,7]
[364891039,1749285055393,-426.267144,0.00029979,7]
[364891040,1749285055403,-151.0,0.00029979,7]
[364891041,1749285055414,-151.0,0.00029979,7]
[364891042,1749285055424,-151.0,0.00029979,7]
[364891043,1749285055435,-1613.0,0.00029979,2]
[364891044,1749285055447,-279.10775981,0.00029981,7]
[364891045,1749285055458,-218.84593086,0.00029981,7]
[364891046,1749285055468,-150.0,0.00029982,7]
[364891047,1749285055478,-230.2904433,0.0002999,2]
[364891048,1749285055488,-399.999999,0.0002999,2]
[364891049,1749285055498,-151.0,0.0002999,7]
[364891050,1749285055508,-977.448713,0.0002999,7]
[364891051,1749285055518,-977.448713,0.0002999,7]
[364891052,1749285055528,-151.0,0.0002999,7]
[364891053,1749285055540,-151.0,0.0002999,7]
[364891054,1749285055550,-151.0,0.0002999,7]
[364891055,1749285055559,-196.779148,0.0002999,7]
[364891056,1749285055569,-196.779148,0.0002999,7]
[364891057,1749285055580,-1642.080816,0.0002999,7]
[364891058,1749285055590,-1642.080816,0.0002999,7]
[364891059,1749285055599,-463.505806,0.0002999,7]
[364891060,1749285055610,-463.505806,0.0002999,7]
[364891061,1749285055620,-151.0,0.0002999,7]
[364891062,1749285055630,-150.0,0.00029994,7]
[364891063,1749285055640,-12124.36,0.00029998,2]
[364891064,1749285055651,-7056.43757684,0.00029999,2]
[364891065,1749285055660,-178904.66022926,0.00029999,7]
[364891066,1749285055670,-151.0,0.00029999,7]
[364891067,1749285055679,-151.0,0.00029999,7]
[364891068,1749285055690,-151.0,0.00029999,7]
[364891069,1749285055702,-151.0,0.00029999,7]
[364891070,1749285055714,-151.0,0.00029999,7]
[364891071,1749285055724,-151.0,0.00029999,7]
[364891072,1749285055735,-151.0,0.00029999,7]
[364891073,1749285055746,-151.0,0.00029999,7]
[364891074,1749285055755,-161.295383,0.00029999,7]
[364891075,1749285055766,-161.295383,0.00029999,7]
[364891076,1749285055777,-300.0,0.00029999,10]
[364891077,1749285055786,-151.0,0.00029999,7]
[364891078,1749285055797,-151.0,0.00029999,7]
[364891079,1749285055807,-151.0,0.00029999,7]
[364891080,1749285055817,-151.0,0.00029999,7]
[364891081,1749285055828,-151.0,0.00029999,7]
[364891082,1749285055837,-151.0,0.00029999,7]
[364891083,1749285055847,-151.0,0.00029999,7]
[364891084,1749285055858,-185.707612,0.00029999,7]
[364891085,1749285055869,-185.707612,0.00029999,7]
[364891086,1749285055880,-281.23,0.00029999,2]
[364891087,1749285055890,-151.0,0.00029999,7]
[364891088,1749285055900,-151.0,0.00029999,7]
[364891089,1749285055910,-151.0,0.00029999,7]
[364891090,1749285055920,-347.722307,0.00029999,7]
[364891091,1749285055930,-347.722307,0.00029999,7]
[364891092,1749285055940,-151.0,0.00029999,7]
[364891093,1749285055951,-151.0,0.00029999,7]
[364891094,1749285055961,-572.91785,0.00029999,7]
[364891095,1749285055971,-572.91785,0.00029999,7]
[364891096,1749285055981,-191.753818,0.00029999,7]
[364891097,1749285055991,-191.753818,0.00029999,7]
[364891098,1749285056001,-9853.96476909,0.00029999,2]
[364891099,1749285056011,-50000.0,0.0003,19]
[364891100,1749285056021,-1159.69732637,0.0003,2]
[364891101,1749285056030,-3962.78821982,0.0003,30]
[364891102,1749285056040,-15015.42867585,0.0003,30]
[364891103,1749285056049,-4289.97323588,0.0003,2]
[364891104,1749285056059,-10017.28146324,0.0003,2]
[364891105,1749285056069,-4241.38539233,0.0003,2]
[364891106,1749285056079,-19289.23548108,0.0003,2]
[364891107,1749285056088,-206430.52976615,0.0003,2]
[364891108,1749285056098,-10571.6441496,0.0003,2]
[364891109,1749285056110,-14253.8967414,0.0003,5]
[364891110,1749285056120,-4000.0,0.0003,10]
[364891111,1749285056130,-1000.0,0.0003,30]
[364891112,1749285056140,-5670.14843372,0.0003,3]
[364891113,1749285056149,-1800.0,0.0003,31]
[364891114,1749285056159,-1000.00030933,0.0003,2]
[364891115,1749285056169,-3502566.941538,0.0003,3]
[364891116,1749285056179,-275.92795355,0.0003,2]
[364891117,1749285056188,-3284.14010335,0.0003,7]
[364891118,1749285056199,-500.0,0.0003,2]
[364891119,1749285056208,-500.0,0.0003,30]
[364891120,1749285056217,-567.2579523,0.0003,4]
[364891121,1749285056227,-830000.0,0.0003,7]
[364891122,1749285056236,-27695.48330649,0.0003,2]
[364891123,1749285056246,-16623.0,0.0003,30]
[364891124,1749285056257,-14619.78942648,0.0003,5]
[364891125,1749285056267,-8661.72299782,0.0003,30]
[364891126,1749285056277,-93993.07987276,0.0003,2]
[364891127,1749285056287,-151.0,0.0003,7]
[364891128,1749285056297,-151.0,0.0003,7]
[364891129,1749285056307,-151.0,0.0003,7]
[364891130,1749285056316,-151.0,0.0003,7]
[364891131,1749285056327,-162.798157,0.0003,7]
[364891132,1749285056337,-151.0,0.0003,7]
[364891133,1749285056347,-151.0,0.0003,7]
[364891134,1749285056357,-151.0,0.0003,7]
[364891135,1749285056367,-151.0,0.0003,7]
[364891136,1749285056378,-151.0,0.0003,7]
[364891137,1749285056391,-151.0,0.0003,7]
[364891138,1749285056400,-151.0,0.0003,7]
[364891139,1749285056411,-151.0,0.0003,7]
[364891140,1749285056421,-153.285283,0.0003,7]
[364891141,1749285056431,-151.0,0.0003,7]
[364891142,1749285056440,-151.0,0.0003,7]
[364891143,1749285056456,-151.0,0.0003,7]
[364891144,1749285056466,-151.0,0.0003,7]
[364891145,1749285056475,-151.0,0.0003,7]
[364891146,1749285056485,-151.0,0.0003,7]
[364891147,1749285056494,-151.0,0.0003,7]
[364891148,1749285056504,-151.0,0.0003,7]
[364891149,1749285056514,-151.0,0.0003,7]
[364891150,1749285056523,-151.0,0.0003,7]
[364891151,1749285056533,-151.0,0.0003,7]
[364891152,1749285056543,-151.0,0.0003,7]
[364891153,1749285056553,-151.0,0.0003,7]
[364891154,1749285056562,-202.3884,0.0003,7]
[364891155,1749285056572,-202.3884,0.0003,7]
[364891156,1749285056585,-202.3884,0.0003,7]
[364891157,1749285056595,-202.3884,0.0003,7]
[364891158,1749285056605,-202.3884,0.0003,7]
[364891159,1749285056615,-202.3884,0.0003,7]
[364891160,1749285056625,-151.0,0.0003,7]
[364891161,1749285056636,-151.0,0.0003,7]
[364891162,1749285056645,-151.0,0.0003,7]
[364891163,1749285056655,-151.0,0.0003,7]
[364891164,1749285056665,-151.0,0.0003,7]
[364891165,1749285056675,-151.0,0.0003,7]
[364891166,1749285056685,-151.0,0.0003,7]
[364891167,1749285056697,-151.0,0.0003,7]
[364891168,1749285056707,-151.0,0.0003,7]
[364891169,1749285056717,-151.0,0.0003,7]
[364891170,1749285056727,-151.0,0.0003,7]
[364891171,1749285056737,-151.0,0.0003,7]
[364891172,1749285056980,-151.0,0.0003,7]
[364891173,1749285056994,-151.0,0.0003,7]
[364891174,1749285057004,-151.0,0.0003,7]
[364891175,1749285057014,-151.0,0.0003,7]
[364891176,1749285057023,-1461.748382,0.0003,7]
[364891177,1749285057033,-1461.748382,0.0003,7]
[364891178,1749285057042,-151.0,0.0003,7]
[364891179,1749285057052,-1461.748382,0.0003,7]
[364891180,1749285057062,-1461.748382,0.0003,7]
[364891181,1749285057071,-400.0,0.0003,30]
[364891182,1749285057081,-1470.829381,0.0003,7]
[364891183,1749285057091,-1470.829381,0.0003,7]
[364891184,1749285057102,-1470.829381,0.0003,7]
[364891185,1749285057113,-1470.829381,0.0003,7]
[364891186,1749285057122,-151.0,0.0003,7]
[364891187,1749285057133,-151.0,0.0003,7]
[364891188,1749285057143,-161.295383,0.0003,7]
[364891189,1749285057154,-161.295383,0.0003,7]
[364891190,1749285057164,-161.295383,0.0003,7]
[364891191,1749285057174,-161.295386,0.0003,7]
[364891192,1749285057184,-151.0,0.0003,7]
[364891193,1749285057195,-151.0,0.0003,7]
[364891194,1749285057205,-151.0,0.0003,7]
[364891195,1749285057215,-151.0,0.0003,7]
[364891196,1749285057224,-151.0,0.0003,7]
[364891197,1749285057235,-151.0,0.0003,7]
[364891198,1749285057244,-182.368168,0.0003,7]
[364891199,1749285057254,-182.368168,0.0003,7]
[364891200,1749285057264,-182.368168,0.0003,7]
[364891201,1749285057274,-182.368169,0.0003,7]
[364891202,1749285057284,-283.26948,0.0003,7]
[364891203,1749285057294,-283.26948,0.0003,7]
[364891204,1749285057304,-283.26948,0.0003,7]
[364891205,1749285057313,-283.269474,0.0003,7]
[364891206,1749285057323,-151.0,0.0003,7]
[364891207,1749285057333,-299.428056,0.0003,7]
[364891208,1749285057343,-151.0,0.0003,7]
[364891209,1749285057353,-1439.761915,0.0003,7]
[364891210,1749285057362,-151.0,0.0003,7]
[364891211,1749285057372,-151.0,0.0003,7]
[364891212,1749285057383,-1439.761915,0.0003,7]
[364891213,1749285057394,-151.0,0.0003,7]
[364891214,1749285057404,-151.0,0.0003,7]
[364891215,1749285057414,-151.0,0.0003,7]
[364891216,1749285057424,-151.0,0.0003,7]
[364891217,1749285057433,-151.0,0.0003,7]
[364891218,1749285057443,-151.0,0.0003,7]
[364891219,1749285057452,-158.674,0.0003,7]
[364891220,1749285057462,-250000.0,0.0003,10]
[364891221,1749285057472,-263.744879,0.0003,7]
[364891222,1749285057482,-263.744879,0.0003,7]
[364891223,1749285057491,-151.0,0.0003,7]
[364891224,1749285057502,-192.752747,0.0003,7]
[364891225,1749285057511,-192.752747,0.0003,7]
[364891226,1749285057521,-192.752747,0.0003,7]
[364891227,1749285057531,-192.752747,0.0003,7]
[364891228,1749285057540,-192.752747,0.0003,7]
[364891229,1749285057550,-192.752747,0.0003,7]
[364891230,1749285057560,-151.0,0.0003,7]
[364891231,1749285057570,-151.0,0.0003,7]
[364891232,1749285057581,-151.0,0.0003,7]
[364891233,1749285057591,-151.0,0.0003,7]
[364891234,1749285057601,-153.754553,0.0003,7]
[364891235,1749285057611,-153.754553,0.0003,7]
[364891236,1749285057621,-153.017383,0.0003,7]
[364891237,1749285057631,-151.0,0.0003,7]
[364891238,1749285057640,-151.0,0.0003,7]
[364891239,1749285057650,-151.0,0.0003,7]
[364891240,1749285057660,-151.0,0.0003,7]
[364891241,1749285057671,-163.931404,0.0003,7]
[364891242,1749285057680,-151.0,0.0003,7]
[364891243,1749285057692,-667.336566,0.0003,7]
[364891244,1749285057704,-667.336566,0.0003,7]
[364891245,1749285057714,-667.336566,0.0003,7]
[364891246,1749285057724,-667.336566,0.0003,7]
[364891247,1749285057735,-667.336566,0.0003,7]
[364891248,1749285057744,-667.336566,0.0003,7]
[364891249,1749285057753,-667.336566,0.0003,7]
[364891250,1749285057764,-667.336566,0.0003,7]
[364891251,1749285057775,-155.516087,0.0003,7]
[364891252,1749285057786,-151.0,0.0003,7]
[364891253,1749285057795,-151.0,0.0003,7]
[364891254,1749285057805,-151.0,0.0003,7]
[364891255,1749285057815,-151.0,0.0003,7]
[364891256,1749285057825,-412.452198,0.0003,7]
[364891257,1749285057835,-412.452198,0.0003,7]
[364891258,1749285057845,-412.452198,0.0003,7]
[364891259,1749285057855,-412.452198,0.0003,7]
[364891260,1749285057866,-412.452198,0.0003,7]
[364891261,1749285057876,-412.452198,0.0003,7]
[364891262,1749285057886,-412.452198,0.0003,7]
[364891263,1749285057897,-412.452198,0.0003,7]
[364891264,1749285057906,-977.448713,0.0003,7]
[364891265,1749285057916,-977.448713,0.0003,7]
[364891266,1749285057925,-977.448713,0.0003,7]
[364891267,1749285057935,-977.448713,0.0003,7]
[364891268,1749285057945,-977.448713,0.0003,7]
[364891269,1749285057955,-977.448713,0.0003,7]
[364891270,1749285057965,-977.448713,0.0003,7]
[364891271,1749285057975,-977.448713,0.0003,7]
[364891272,1749285057985,-151.0,0.0003,7]
[364891273,1749285057994,-154.792367,0.0003,7]
[364891274,1749285058004,-151.0,0.0003,7]
[364891275,1749285058014,-151.0,0.0003,7]
[364891276,1749285058023,-151.0,0.0003,7]
[364891277,1749285058033,-151.0,0.0003,7]
[364891278,1749285058043,-287.757394,0.0003,7]
[364891279,1749285058053,-179.340194,0.0003,7]
[364891280,1749285058063,-179.340194,0.0003,7]
[364891281,1749285058073,-270.465661,0.0003,7]
[364891282,1749285058083,-151.0,0.0003,7]
[364891283,1749285058092,-151.0,0.0003,7]
[364891284,1749285058102,-151.0,0.0003,7]
[364891285,1749285058111,-196.779148,0.0003,7]
[364891286,1749285058121,-196.779148,0.0003,7]
[364891287,1749285058131,-196.779148,0.0003,7]
[364891288,1749285058140,-196.779148,0.0003,7]
[364891289,1749285058150,-196.779148,0.0003,7]
[364891290,1749285058159,-196.779148,0.0003,7]
[364891291,1749285058169,-196.779148,0.0003,7]
[364891292,1749285058178,-196.779148,0.0003,7]
[364891293,1749285058188,-862.422387,0.0003,7]
[364891294,1749285058199,-862.422387,0.0003,7]
[364891295,1749285058209,-151.0,0.0003,7]
[364891296,1749285058219,-151.0,0.0003,7]
[364891297,1749285058229,-151.0,0.0003,7]
[364891298,1749285058238,-151.0,0.0003,7]
[364891299,1749285058248,-151.0,0.0003,7]
[364891300,1749285058258,-151.0,0.0003,7]
[364891301,1749285058268,-151.0,0.0003,7]
[364891302,1749285058277,-151.0,0.0003,7]
[364891303,1749285058287,-151.0,0.0003,7]
[364891304,1749285058297,-177.040968,0.0003,7]
[364891305,1749285058306,-177.040968,0.0003,7]
[364891306,1749285058315,-177.040968,0.0003,7]
[364891307,1749285058325,-177.040968,0.0003,7]
[364891308,1749285058335,-1642.080816,0.0003,7]
[364891309,1749285058345,-1642.080816,0.0003,7]
[364891310,1749285058355,-1642.080816,0.0003,7]
[364891311,1749285058365,-1642.080816,0.0003,7]
[364891312,1749285058375,-151.0,0.0003,7]
[364891313,1749285058386,-177.040968,0.0003,7]
[364891314,1749285058396,-151.0,0.0003,7]
[364891315,1749285058406,-177.040968,0.0003,7]
[364891316,1749285058416,-151.0,0.0003,7]
[364891317,1749285058425,-1642.080816,0.0003,7]
[364891318,1749285058435,-177.040968,0.0003,7]
[364891319,1749285058445,-1642.080816,0.0003,7]
[364891320,1749285058455,-177.040968,0.0003,7]
[364891321,1749285058464,-1642.080816,0.0003,7]
[364891322,1749285058474,-1642.080816,0.0003,7]
[364891323,1749285058484,-151.0,0.0003,7]
[364891324,1749285058495,-151.0,0.0003,7]
[364891325,1749285058505,-185.707612,0.0003,7]
[364891326,1749285058515,-185.707612,0.0003,7]
[364891327,1749285058524,-185.707612,0.0003,7]
[364891328,1749285058534,-185.707612,0.0003,7]
[364891329,1749285058543,-185.707612,0.0003,7]
[364891330,1749285058554,-185.707612,0.0003,7]
[364891331,1749285058564,-185.707612,0.0003,7]
[364891332,1749285058574,-185.707612,0.0003,7]
[364891333,1749285058583,-151.0,0.0003,7]
[364891334,1749285058593,-151.0,0.0003,7]
[364891335,1749285058603,-151.0,0.0003,7]
[364891336,1749285058613,-151.0,0.0003,7]
[364891337,1749285058622,-463.505806,0.0003,7]
[364891338,1749285058632,-151.0,0.0003,7]
[364891339,1749285058641,-463.505806,0.0003,7]
[364891340,1749285058652,-151.0,0.0003,7]
[364891341,1749285058661,-463.505806,0.0003,7]
[364891342,1749285058671,-151.0,0.0003,7]
[364891343,1749285058680,-463.505806,0.0003,7]
[364891344,1749285058690,-151.0,0.0003,7]
[364891345,1749285058702,-151.0,0.0003,7]
[364891346,1749285058712,-262.95984,0.0003,7]
[364891347,1749285058722,-463.505806,0.0003,7]
[364891348,1749285058732,-463.505806,0.0003,7]
[364891349,1749285058742,-645.346851,0.0003,7]
[364891350,1749285058751,-463.505806,0.0003,7]
[364891351,1749285058761,-463.505806,0.0003,7]
[364891352,1749285058771,-2026.87948,0.0003,7]
[364891353,1749285058781,-645.346851,0.0003,7]
[364891354,1749285058790,-2026.87948,0.0003,7]
[364891355,1749285058800,-2026.87948,0.0003,7]
[364891356,1749285058810,-2026.87948,0.0003,7]
[364891357,1749285058820,-2026.87948,0.0003,7]
[364891358,1749285058830,-2026.87948,0.0003,7]
[364891359,1749285058840,-151.0,0.0003,7]
[364891360,1749285058850,-151.0,0.0003,7]
[364891361,1749285058860,-151.0,0.0003,7]
[364891362,1749285058869,-151.0,0.0003,7]
[364891363,1749285058879,-153.436081,0.0003,7]
[364891364,1749285058889,-151.0,0.0003,7]
[364891365,1749285058899,-151.0,0.0003,7]
[364891366,1749285058908,-151.0,0.0003,7]
[364891367,1749285058918,-347.722307,0.0003,7]
[364891368,1749285058927,-347.722307,0.0003,7]
[364891369,1749285058937,-347.722307,0.0003,7]
[364891370,1749285058946,-347.722307,0.0003,7]
[364891371,1749285058956,-347.722307,0.0003,7]
[364891372,1749285058967,-347.722307,0.0003,7]
[364891373,1749285058978,-155.562117,0.0003,7]
[364891374,1749285058988,-347.722307,0.0003,7]
[364891375,1749285059000,-155.562117,0.0003,7]
[364891376,1749285059011,-347.722307,0.0003,7]
[364891377,1749285059021,-155.562117,0.0003,7]
[364891378,1749285059030,-155.562117,0.0003,7]
[364891379,1749285059041,-151.0,0.0003,7]
[364891380,1749285059051,-151.0,0.0003,7]
[364891381,1749285059060,-159.519686,0.0003,7]
[364891382,1749285059070,-155.562117,0.0003,7]
[364891383,1749285059080,-155.562117,0.0003,7]
[364891384,1749285059090,-155.562117,0.0003,7]
[364891385,1749285059100,-155.562117,0.0003,7]
[364891386,1749285059109,-151.0,0.0003,7]
[364891387,1749285059119,-151.0,0.0003,7]
[364891388,1749285059128,-151.0,0.0003,7]
[364891389,1749285059137,-151.0,0.0003,7]
[364891390,1749285059146,-1000.0,0.0003,2]
[364891391,1749285059156,-572.91785,0.0003,7]
[364891392,1749285059165,-572.91785,0.0003,7]
[364891393,1749285059175,-572.91785,0.0003,7]
[364891394,1749285059184,-572.91785,0.0003,7]
[364891395,1749285059193,-572.91785,0.0003,7]
[364891396,1749285059203,-572.91785,0.0003,7]
[364891397,1749285059212,-572.91785,0.0003,7]
[364891398,1749285059222,-572.91785,0.0003,7]
[364891399,1749285059231,-205.49714,0.0003,7]
[364891400,1749285059242,-205.49714,0.0003,7]
[364891401,1749285059251,-205.49714,0.0003,7]
[364891402,1749285059261,-205.49714,0.0003,7]
[364891403,1749285059271,-205.49714,0.0003,7]
[364891404,1749285059281,-205.49714,0.0003,7]
[364891405,1749285059291,-191.753818,0.0003,7]
[364891406,1749285059300,-191.753818,0.0003,7]
[364891407,1749285059309,-191.753818,0.0003,7]
[364891408,1749285059318,-191.753818,0.0003,7]
[364891409,1749285059327,-191.753818,0.0003,7]
[364891410,1749285059337,-191.753818,0.0003,7]
[364891411,1749285059415,-191.753818,0.0003,7]
[364891412,1749285059424,-191.753818,0.0003,7]
[364891413,1749285059434,-155.0,0.0003,14]
[364891414,1749285059443,-159.0,0.0003,22]
[364891415,1749285059452,-214.0,0.0003,2]
[364891416,1749285059462,-1342.2513602,0.0003,2]
[364891417,1749285059471,-1502.474718,0.0003,2]
[364891418,1749285059482,-279.10775981,0.00030001,7]
[364891419,1749285059491,-218.84593086,0.00030001,7]
[364891420,1749285059502,-150.0,0.00030002,7]
[364891421,1749285059511,-1000.0,0.00030003,7]
[364891422,1749285059520,-150.0,0.00030013,7]
[364891423,1749285059529,-150.0,0.00030013,7]
[364891424,1749285059540,-279.10775981,0.0003002,7]
[364891425,1749285059549,-218.84593086,0.0003002,7]
[364891426,1749285059558,-150.0,0.00030021,7]
[364891427,1749285059568,-150.0,0.00030022,7]
[364891428,1749285059576,-150.0,0.00030025,7]
[364891429,1749285059587,-636.82,0.00030027,5]
[364891430,1749285059598,-150.0,0.0003003,7]
[364891431,1749285059608,-279.10775981,0.0003004,7]
[364891432,1749285059617,-218.84593086,0.0003004,7]
[364891433,1749285059626,-150.0,0.00030047,7]
[364891434,1749285059636,-150.0,0.00030058,7]
[364891435,1749285059645,-279.10775981,0.00030059,7]
[364891436,1749285059654,-218.84593086,0.00030059,7]
[364891437,1749285059664,-150.0,0.00030061,7]
[364891438,1749285059674,-150.0,0.00030062,7]
[364891439,1749285059683,-150.0,0.00030073,7]
[364891440,1749285059695,-279.10775981,0.00030079,7]
[364891441,1749285059705,-218.84593086,0.00030079,7]
[364891442,1749285059714,-78188.96665214,0.0003008,7]
[364891443,1749285059725,-150.0,0.00030085,7]
[364891444,1749285059735,-279.10775981,0.00030099,7]
[364891445,1749285059744,-218.84593086,0.00030099,7]
[364891446,1749285059754,-150.0,0.000301,7]
[364891447,1749285059763,-150.0,0.000301,2]
[364891448,1749285059774,-1000.0,0.000301,2]
[364891449,1749285059784,-150.0,0.00030101,7]
[364891450,1749285059794,-155.0,0.00030102,2]
[364891451,1749285059804,-4082.0,0.00030102,2]
[364891452,1749285059814,-7018.0,0.00030102,2]
[364891453,1749285059824,-1164.0,0.00030102,2]
[364891454,1749285059834,-150.0,0.00030106,7]
[364891455,1749285059844,-150.0,0.00030106,7]
[364891456,1749285059854,-150.0,0.00030106,7]
[364891457,1749285059863,-12114.07,0.0003011,2]
[364891458,1749285059873,-150.0,0.00030112,7]
[364891459,1749285059883,-150.0,0.00030113,7]
[364891460,1749285059892,-279.10775981,0.00030118,7]
[364891461,1749285059901,-218.84593086,0.00030118,7]
[364891462,1749285059911,-4939.20919227,0.00030123,3]
[364891463,1749285059920,-150.0,0.00030126,7]
[364891464,1749285059930,-9250.13282047,0.0003013,2]
[364891465,1749285059939,-195.59505992,0.0003013,2]
[364891466,1749285059950,-500.0,0.00030136,2]
[364891467,1749285059959,-600.0,0.00030137,2]
[364891468,1749285059970,-186.63,0.00030137,80]
[364891469,1749285059979,-500.0,0.00030137,5]
[364891470,1749285059988,-279.10775981,0.00030138,7]
[364891471,1749285059998,-218.84593086,0.00030138,7]
[364891472,1749285060008,-1000.0,0.0003014,7]
[364891473,1749285060018,-150.0,0.00030141,7]
[364891474,1749285060027,-150.0,0.00030141,7]
[364891475,1749285060036,-150.0,0.00030141,7]
[364891476,1749285060045,-150.0,0.00030152,7]
[364891477,1749285060054,-279.10775981,0.00030158,7]
[364891478,1749285060064,-218.84593086,0.00030158,7]
[364891479,1749285060073,-150.0,0.00030162,7]
[364891480,1749285060083,-150.0,0.00030162,7]
[364891481,1749285060094,-500.0,0.00030164,5]
[364891482,1749285060103,-150.0,0.00030169,7]
[364891483,1749285060112,-279.10775981,0.00030177,7]
[364891484,1749285060122,-218.84593086,0.00030177,7]
[364891485,1749285060131,-150.0,0.00030178,7]
[364891486,1749285060140,-150.0,0.00030181,7]
[364891487,1749285060151,-150.0,0.00030187,7]
[364891488,1749285060162,-636.82,0.00030191,5]
[364891489,1749285060173,-151.0,0.00030191,7]
[364891490,1749285060183,-151.0,0.00030191,7]
[364891491,1749285060193,-202.3884,0.00030191,7]
[364891492,1749285060203,-202.3884,0.00030191,7]
[364891493,1749285060212,-151.0,0.00030191,7]
[364891494,1749285060222,-151.0,0.00030191,7]
[364891495,1749285060231,-151.0,0.00030191,7]
[364891496,1749285060241,-1461.748382,0.00030191,7]
[364891497,1749285060250,-1461.74838,0.00030191,7]
[364891498,1749285060260,-1470.829381,0.00030191,7]
[364891499,1749285060269,-1470.829373,0.00030191,7]
[364891500,1749285060279,-151.0,0.00030191,7]
[364891501,1749285060289,-153.757701,0.00030191,7]
[364891502,1749285060299,-151.0,0.00030191,7]
[364891503,1749285060309,-151.0,0.00030191,7]
[364891504,1749285060319,-153.65936,0.00030191,7]
[364891505,1749285060329,-256.632091,0.00030191,7]
[364891506,1749285060338,-256.632091,0.00030191,7]
[364891507,1749285060347,-850.307111,0.00030191,7]
[364891508,1749285060357,-850.307111,0.00030191,7]
[364891509,1749285060367,-290.056007,0.00030191,7]
[364891510,1749285060376,-500.0,0.00030192,5]
[364891511,1749285060386,-150.0,0.00030196,7]
[364891512,1749285060395,-279.10775981,0.00030197,7]
[364891513,1749285060404,-218.84593086,0.00030197,7]